bitfinex-derivatives/quotes_ETHF0:USTF0_20210702
["timestamp","ask_amount","ask_price","bid_price","bid_amount"]
[1625264573307,2.20527,2107.2,2106.7,57.05927]
[1625264574564,2.20527,2107.2,2107.1,55.71677]
[1625264575115,2.20527,2107.2,2107.1,2.20527]
[1625264575816,2.20527,2107.2,2106.7,53.28547]
[1625264575917,4.69227,2107.2,2106.7,53.28547]
[1625264576568,2.20527,2106.8,2106.7,53.28547]
[1625264577066,2.20527,2106.8,2106.7,2.20527]
[1625264577668,2.20527,2106.8,2106.3,65.0825]
[1625264578520,2.20527,2106.8,2106.6,2.20527]
[1625264579130,2.20527,2106.8,2106.7,57.6832]
[1625264580497,2.20527,2106.8,2106.6,2.20527]
[1625264581053,2.20527,2106.8,2106.7,47.2205]
[1625264581700,2.20527,2106.8,2106.7,50.1734]
[1625264582451,14.7628,2108.7,2106.7,50.1734]
[1625264582559,2.20527,2107.9,2107.1,4.41054]
[1625264583453,2.20527,2107.9,2107.8,53.99]
[1625264583653,2.20527,2107.9,2107.8,56.3439]
[1625264584506,2.20527,2107.9,2107.8,60.75444]
[1625264585307,2.20527,2107.9,2107.8,6.76444]
[1625264585909,2.20527,2107.9,2107.8,4.41054]
[1625264588216,2.20527,2107.9,2107.2,92.8347]
[1625264588315,3.20527,2107.9,2107.2,92.8347]
[1625264588566,3.20527,2107.9,2107.3,2.20527]
[1625264588665,2.20527,2107.9,2107.3,2.20527]
[1625264589322,44.8475,2107.6,2107.3,2.20527]
[1625264589419,48.2257,2107.6,2107.3,2.20527]
[1625264589521,53.2257,2107.6,2107.3,2.20527]
[1625264589670,48.2257,2107.6,2107.3,2.20527]
[1625264590222,3.3782,2107.6,2107.3,2.20527]
[1625264590639,4.41054,2107.4,2107.3,2.20527]
[1625264593852,4.41054,2107.4,2107.3,60.67527]
[1625264595061,4.41054,2107.4,2107.3,2.20527]
[1625264597163,4.41054,2107.4,2107.1,2.20527]
[1625264597262,4.41054,2107.4,2105.9,3.63105856]
[1625264597362,1.0,2107.3,2105.9,3.63105856]
[1625264597765,53.1419,2107.2,2106.0,1.95536172]
[1625264597864,1.0,2107.1,2106.0,1.95536172]
[1625264597964,3.8017,2107.1,2106.0,1.95536172]
[1625264598065,3.8017,2107.1,2105.8,1.95554138]
[1625264598667,2.20527,2106.1,2106.0,2.20527]
[1625264598763,5.85177,2106.1,2106.0,2.20527]
[1625264600620,8.05704,2106.1,2106.0,2.20527]
[1625264604775,8.05704,2106.1,2106.0,59.88077]
[1625264607643,8.05704,2106.1,2106.0,2.20527]
[1625264612101,8.05704,2106.1,2106.0,61.69067]
[1625264612301,8.05704,2106.1,2106.0,2.20527]
[1625264613855,1.0,2106.6,2106.0,2.20527]
[1625264614009,1.0,2107.4,2106.0,2.20527]
[1625264614510,1.0,2107.4,2106.9,40.4584]
[1625264614662,14.4656,2107.7,2106.4,3.6853]
[1625264614766,2.20527,2106.7,2106.6,2.20527]
[1625264614965,2.20527,2106.7,2106.4,3.6853]
[1625264616712,2.20527,2106.7,2106.5,2.20527]
[1625264617719,2.20527,2106.9,2106.5,2.20527]
[1625264622831,2.20527,2106.9,2106.8,2.20527]
[1625264624431,2.20527,2106.9,2106.7,48.3682]
[1625264624642,2.20527,2106.9,2106.5,2.20527]
[1625264624781,2.20527,2106.6,2106.5,2.20527]
[1625264625185,2.20527,2106.6,2106.2,2.20527]
[1625264626802,4.41054,2106.6,2106.5,2.20527]
[1625264626902,4.41054,2106.6,2106.5,52.81207]
[1625264627612,4.41054,2106.6,2106.5,56.03357]
[1625264628308,2.20527,2106.6,2106.5,56.03357]
[1625264630916,2.20527,2106.6,2106.5,52.81207]
[1625264631367,2.20527,2106.6,2106.5,2.20527]
[1625264632122,5.77607,2106.6,2106.5,2.20527]
[1625264635279,5.77607,2106.6,2106.5,61.05197]
[1625264635377,5.77607,2106.6,2106.5,2.20527]
[1625264638839,5.77607,2106.6,2106.2,2.20527]
[1625264639700,5.77607,2106.6,2106.4,51.0937]
[1625264640870,2.20527,2106.5,2106.4,51.0937]
[1625264641919,2.20527,2106.5,2106.2,2.20527]
[1625264642873,2.20527,2106.3,2106.2,2.20527]
[1625264642973,2.20527,2106.3,2106.2,59.94347]
[1625264643980,4.88857,2106.3,2106.2,59.94347]
[1625264649194,4.88857,2106.3,2106.2,2.20527]
[1625264655638,4.88857,2106.3,2106.0,2.20527]
[1625264656941,4.88857,2106.3,2106.1,58.4771]
[1625264657953,4.88857,2106.3,2106.0,2.20527]
[1625264658961,2.20527,2106.1,2106.0,2.20527]
[1625264660163,1.95812848,2107.3,2106.0,2.20527]
[1625264660365,1.95868683,2107.4,2106.0,2.20527]
[1625264660768,16.674,2107.5,2106.0,4.16227997]
[1625264660914,1.0,2107.3,2106.0,4.16227997]
[1625264661015,1.0,2107.3,2107.2,2.20527]
[1625264661118,2.20527,2107.4,2107.2,2.20527]
[1625264663017,4.41054,2107.4,2107.2,2.20527]
[1625264664872,15.674,2107.5,2107.2,2.20527]
[1625264665019,15.674,2107.5,2107.4,2.20527]
[1625264665170,14.4656,2107.7,2107.4,2.20527]
[1625264665571,5.16339846,2107.9,2107.4,2.20527]
[1625264665673,2.20527,2107.9,2107.4,2.20527]
[1625264666072,1.95837805,2107.8,2107.4,2.20527]
[1625264667073,5.00295293,2107.9,2107.4,2.20527]
[1625264667074,4.16366726,2107.9,2107.4,2.20527]
[1625264667829,2.20527,2107.9,2107.4,2.20527]
[1625264667928,2.95823351,2108.0,2107.4,2.20527]
[1625264668028,1.95823351,2108.0,2107.4,2.20527]
[1625264668229,5.16324447,2108.1,2107.4,2.20527]
[1625264668380,4.16324447,2108.1,2107.4,2.20527]
[1625264668631,2.20527,2108.1,2107.4,2.20527]
[1625264669029,2.20527,2108.1,2107.7,2.20527]
[1625264669983,4.16293538,2108.1,2107.7,2.20527]
[1625264670535,2.20527,2108.1,2107.9,57.8985]
[1625264670635,2.20527,2108.1,2107.7,2.20527]
[1625264671038,2.20527,2108.1,2107.7,4.41054]
[1625264671988,4.16272661,2108.1,2107.7,4.41054]
[1625264672635,4.16272661,2108.1,2107.5,44.7087]
[1625264673038,4.16272661,2108.1,2107.6,2.20527]
[1625264673236,1.95752138,2108.0,2107.6,2.20527]
[1625264673385,5.49982138,2108.0,2107.6,2.20527]
[1625264673488,5.49982138,2108.0,2107.4,2.20527]
[1625264673734,1.95814028,2107.9,2107.4,2.20527]
[1625264674189,1.95814028,2107.9,2107.1,44.5497]
[1625264674492,1.9586535,2107.8,2106.7,69.2094]
[1625264674588,2.9586535,2107.8,2106.7,69.2094]
[1625264674888,1.95891317,2107.7,2106.7,69.2094]
[1625264675089,2.20527,2106.8,2106.7,71.41467]
[1625264675239,5.76287,2106.8,2106.7,71.41467]
[1625264675538,3.5576,2106.8,2106.7,71.41467]
[1625264677744,3.5576,2106.8,2106.7,2.20527]
[1625264678242,3.5576,2106.8,2106.5,2.20527]
[1625264678345,3.5576,2106.8,2106.6,52.5798]
[1625264678492,3.5576,2106.8,2106.5,2.20527]
[1625264680299,3.5576,2106.8,2106.7,59.3505]
[1625264680404,1.0,2107.1,2106.5,2.20527]
[1625264680504,3.8034,2106.8,2106.5,2.20527]
[1625264681158,3.8034,2106.8,2106.7,59.3502]
[1625264682213,2.20527,2107.2,2106.7,59.3502]
[1625264682811,2.20527,2107.2,2107.1,46.9832]
[1625264683062,2.20527,2107.2,2107.1,51.39374]
[1625264683862,2.96091312,2107.5,2107.1,51.39374]
[1625264683961,1.96091312,2107.5,2107.1,53.80544]
[1625264684362,1.96080004,2107.9,2107.1,53.80544]
[1625264684462,2.96080004,2107.9,2107.1,53.80544]
[1625264685139,2.20527,2107.8,2107.6,2.20527]
[1625264689093,2.20527,2107.8,2107.6,59.64747]
[1625264689294,2.20527,2107.8,2107.6,2.20527]
[1625264689548,4.16557591,2107.8,2107.6,2.20527]
[1625264689850,2.80064659,2107.7,2107.6,2.20527]
[1625264690000,2.80064659,2107.7,2106.4,1.95782295]
[1625264690107,1.0,2107.6,2106.4,1.95782295]
[1625264690298,1.0,2107.6,2106.3,1.95833175]
[1625264690448,4.47502406,2107.5,2106.3,1.95833175]
[1625264690549,1.0,2107.4,2106.3,1.95833175]
[1625264690697,1.0,2107.4,2106.0,1.96003007]
[1625264690698,1.96087911,2107.2,2106.0,1.96003007]
[1625264690797,1.0,2107.1,2106.0,1.96003007]
[1625264691048,1.0,2107.1,2105.9,1.96091396]
[1625264691157,1.0,2107.1,2106.6,2.20527]
[1625264691158,2.20527,2106.7,2106.6,2.20527]
[1625264691252,63.58227,2106.7,2106.6,2.20527]
[1625264691451,5.96827,2106.7,2106.6,2.20527]
[1625264693109,8.17354,2106.7,2106.6,2.20527]
[1625264695220,8.17354,2106.7,2106.6,47.52867]
[1625264695321,4.41054,2106.7,2106.6,47.52867]
[1625264695922,2.20527,2106.7,2106.6,47.52867]
[1625264696725,1.0,2107.2,2106.6,47.52867]
[1625264696824,1.95731436,2107.3,2106.6,47.52867]
[1625264697175,2.20527,2107.0,2106.6,47.52867]
[1625264698224,1.95716301,2107.4,2106.6,47.52867]
[1625264698325,1.95716301,2107.4,2107.1,59.482]
[1625264698577,1.95508032,2107.5,2107.1,62.315]
[1625264698780,1.95466663,2107.8,2107.1,62.315]
[1625264699127,1.95466663,2107.8,2107.7,4.41054]
[1625264699229,1.95484389,2107.9,2107.7,49.97694]
[1625264699980,4.16013688,2108.0,2107.7,49.97694]
[1625264700740,4.16013688,2108.0,2107.7,7.65914]
[1625264701394,2.20527,2108.0,2107.7,7.65914]
[1625264701595,1.95672126,2108.1,2107.7,7.65914]
[1625264701694,1.95672126,2108.1,2108.0,43.8696]
[1625264701795,2.20527,2108.2,2108.0,43.8696]
[1625264702346,2.20527,2108.2,2107.7,75.45554]
[1625264703200,2.20527,2108.2,2108.0,2.20527]
[1625264703407,1.39952844,2108.1,2108.0,2.20527]
[1625264703711,6.96374973,2108.2,2108.0,2.20527]
[1625264703810,3.36551241,2108.1,2108.0,2.20527]
[1625264704012,3.36551241,2108.1,2106.9,1.39793111]
[1625264704266,3.36551241,2108.1,2106.8,1.95710355]
[1625264704267,5.0454827,2108.1,2106.6,1.39831955]
[1625264704364,5.0454827,2108.1,2106.9,57.3631]
[1625264704564,3.63936824,2108.1,2106.9,57.3631]
[1625264704916,1.40623903,2108.0,2106.9,57.3631]
[1625264705018,1.39978434,2107.7,2106.9,57.3631]
[1625264705267,2.20527,2107.6,2107.4,2.20527]
[1625264705468,47.06247,2107.6,2107.4,2.20527]
[1625264705568,47.06247,2107.6,2107.2,2.20527]
[1625264706074,1.39983073,2107.5,2107.2,2.20527]
[1625264706222,4.05303073,2107.5,2107.2,2.20527]
[1625264706823,1.40004513,2107.3,2107.2,2.20527]
[1625264707073,42.81874513,2107.3,2107.2,2.20527]
[1625264707175,3.60531513,2107.3,2107.2,2.20527]
[1625264707574,2.20527,2107.3,2107.2,2.20527]
[1625264708875,2.20527,2107.3,2107.2,50.80547]
[1625264709125,2.20527,2107.3,2107.2,2.20527]
[1625264711835,3.60521763,2107.3,2107.2,2.20527]
[1625264712134,56.56711763,2107.3,2107.2,2.20527]
[1625264712239,57.12716839,2107.3,2107.2,2.20527]
[1625264713340,4.16526839,2107.3,2107.2,2.20527]
[1625264714290,2.20527,2107.3,2107.2,2.20527]
[1625264717552,2.20527,2107.3,2107.2,4.73647]
[1625264718152,2.20527,2107.3,2107.2,49.06307]
[1625264718503,1.39970269,2107.8,2107.2,49.06307]
[1625264718604,1.39945241,2108.0,2107.2,49.06307]
[1625264718907,1.3993472,2108.1,2107.2,49.06307]
[1625264719254,1.3993472,2108.1,2108.0,4.41054]
[1625264719358,1.39929794,2108.2,2108.0,7.57774]
[1625264719556,1.39929794,2108.2,2108.1,44.96]
[1625264719658,3.60445978,2108.3,2108.1,44.96]
[1625264720809,2.20527,2108.3,2108.1,44.96]
[1625264721617,2.20527,2108.3,2108.0,7.57774]
[1625264722518,2.20527,2108.3,2107.6,82.4879]
[1625264722519,4.70177,2108.3,2107.6,82.4879]
[1625264722616,5.70177,2108.3,2107.6,82.4879]
[1625264722823,5.70177,2108.3,2107.2,44.3266]
[1625264723028,7.10027684,2108.3,2107.2,44.3266]
[1625264723325,2.20527,2107.8,2107.5,2.20527]
[1625264723477,5.91067,2107.8,2107.5,2.20527]
[1625264726084,5.91067,2107.8,2107.7,48.369]
[1625264727032,5.91067,2107.8,2107.5,2.20527]
[1625264727333,2.20527,2107.6,2107.5,2.20527]
[1625264728086,2.20527,2107.6,2107.3,2.20527]
[1625264728735,2.20527,2107.6,2107.4,43.4319]
[1625264731409,2.20527,2107.6,2107.5,2.20527]
[1625264733774,1.39854825,2108.0,2107.5,2.20527]
[1625264733872,1.39854825,2108.0,2107.5,5.16467]
[1625264734322,1.39854825,2108.0,2107.9,50.4168]
[1625264734473,1.3985223,2108.1,2107.9,50.4168]
[1625264734723,1.39841639,2108.2,2107.9,50.4168]
[1625264735176,1.39838764,2108.3,2107.9,50.4168]
[1625264735375,3.60365764,2108.3,2108.2,2.20527]
[1625264736276,5.00226924,2108.3,2108.2,2.20527]
[1625264737382,4.41054,2108.3,2108.2,2.20527]
[1625264739542,6.36845413,2108.3,2108.2,2.20527]
[1625264739791,6.36845413,2108.3,2108.2,48.10867]
[1625264740392,6.36845413,2108.3,2108.2,51.53597]
[1625264740894,4.41054,2108.3,2108.2,51.53597]
[1625264744196,5.80948503,2108.3,2108.2,51.53597]
[1625264745051,1.39894503,2108.3,2108.2,51.53597]
[1625264745151,1.39878826,2108.4,2108.2,51.53597]
[1625264745555,1.39853741,2108.8,2108.2,51.53597]
[1625264745904,1.95795237,2108.9,2108.2,51.53597]
[1625264745905,1.39849957,2108.9,2108.2,51.53597]
[1625264746253,9.957e-05,2108.9,2108.2,51.53597]
[1625264746552,4.16262709,2109.1,2108.2,51.53597]
[1625264746751,4.16262709,2109.1,2108.2,56.53597]
[1625264746902,2.20527,2109.1,2108.2,56.53597]
[1625264747101,2.20527,2109.1,2108.2,51.53597]
[1625264747450,2.20527,2109.1,2109.0,4.41054]
[1625264749858,2.20527,2109.3,2109.0,4.41054]
[1625264750708,2.20527,2109.3,2109.1,53.6302]
[1625264750808,2.20527,2109.3,2109.0,4.41054]
[1625264751309,2.20527,2109.3,2109.1,53.6302]
[1625264751408,4.16073507,2109.3,2109.1,53.6302]
[1625264752160,2.20527,2109.3,2109.1,53.6302]
[1625264753926,4.15974701,2109.6,2109.1,53.6302]
[1625264754314,2.20527,2109.6,2109.1,53.6302]
[1625264755530,2.20527,2109.6,2109.5,4.41054]
[1625264756091,4.15880156,2109.6,2109.5,4.41054]
[1625264756647,4.99547659,2109.6,2109.5,4.41054]
[1625264756940,4.99547659,2109.6,2109.5,4e-05]
[1625264757142,2.20527,2109.6,2109.5,4e-05]
[1625264757895,2.20527,2109.6,2108.6,67.4428]
[1625264757997,1.0,2109.5,2108.6,67.4428]
[1625264758244,1.95312149,2109.4,2108.6,67.4428]
[1625264758394,2.95312149,2109.4,2108.6,67.4428]
[1625264758596,2.95312149,2109.4,2108.2,45.9034]
[1625264759396,1.95300352,2109.3,2108.2,45.9034]
[1625264759497,1.0,2109.2,2108.7,42.6555]
[1625264759598,1.95300352,2109.3,2108.7,42.6555]
[1625264760704,1.95300352,2109.3,2108.1,2.20527]
[1625264760802,1.0,2109.2,2108.1,2.20527]
[1625264761102,1.0,2109.2,2107.9,2.20527]
[1625264761302,48.0627,2108.7,2107.9,2.20527]
[1625264761455,49.0627,2108.7,2107.9,2.20527]
[1625264761553,2.20527,2108.0,2107.9,2.20527]
[1625264761651,5.11017,2108.0,2107.9,2.20527]
[1625264766868,2.20527,2108.0,2107.9,2.20527]
[1625264767671,2.20527,2108.2,2107.9,2.20527]
[1625264768070,2.20527,2108.2,2108.1,52.6569]
[1625264768570,1.95352246,2109.0,2108.1,52.6569]
[1625264768822,1.95331658,2109.3,2108.1,52.6569]
[1625264769174,16.67689982,2109.7,2108.1,52.6569]
[1625264769322,15.5771,2109.2,2108.1,52.6569]
[1625264769623,15.5771,2109.2,2109.1,2.20527]
[1625264769932,2.20527,2109.3,2109.1,2.20527]
[1625264770431,2.20527,2109.3,2109.2,53.8557]
[1625264773240,2.20527,2109.5,2109.2,53.8557]
[1625264773338,1.95218779,2109.9,2109.2,53.8557]
[1625264773638,1.95211559,2110.0,2109.9,4.41054]
[1625264773849,1.95211559,2110.0,2109.9,60.56244]
[1625264774254,1.95082996,2110.4,2109.9,60.56244]
[1625264774350,1.95082996,2110.4,2109.9,4.41054]
[1625264775251,1.95082216,2110.3,2109.9,4.41054]
[1625264775351,5.35302216,2110.3,2109.9,4.41054]
[1625264775551,1.95032125,2110.2,2109.6,42.9793]
[1625264775802,4.69657,2109.8,2109.6,42.9793]
[1625264777763,4.69657,2109.8,2109.7,2.20527]
[1625264781780,4.69657,2109.8,2109.4,2.20527]
[1625264782077,4.69657,2109.8,2108.7,84.1255]
[1625264782185,5.69657,2109.8,2108.7,84.1255]
[1625264783651,7.6464928,2109.8,2108.7,84.1255]
[1625264783748,7.6464928,2109.8,2109.4,2.20527]
[1625264783848,6.6464928,2109.8,2109.4,2.20527]
[1625264785804,2.20527,2109.5,2109.4,2.20527]
[1625264786005,2.20527,2109.5,2109.1,49.1485]
[1625264786505,2.20527,2109.5,2109.4,49.987]
[1625264786809,2.20527,2109.8,2109.4,49.987]
[1625264787758,2.20527,2109.8,2109.7,4.41054]
[1625264788859,4.15581679,2110.0,2109.7,4.41054]
[1625264789063,2.20527,2110.0,2109.7,4.41054]
[1625264790679,4.15567611,2110.0,2109.7,4.41054]
[1625264790884,4.15567611,2110.0,2109.1,49.1485]
[1625264790986,7.66807611,2110.0,2108.7,84.1255]
[1625264791084,2.95053074,2109.9,2108.2,65.2529]
[1625264791696,1.95070018,2109.7,2108.2,65.2529]
[1625264791795,2.20527,2109.0,2108.7,2.20527]
[1625264791896,4.85757,2109.0,2108.7,2.20527]
[1625264792206,2.6523,2109.0,2108.7,2.20527]
[1625264793357,2.6523,2109.0,2108.9,53.0733]
[1625264795111,2.6523,2109.0,2108.7,2.20527]
[1625264797617,2.20527,2109.3,2108.7,2.20527]
[1625264797716,2.20527,2109.3,2109.1,48.1543]
[1625264797817,2.20527,2109.3,2109.2,2.20527]
[1625264799827,2.20527,2109.3,2109.2,4.41054]
[1625264800127,2.20527,2109.3,2109.2,50.25434]
[1625264800528,2.20527,2109.3,2109.2,48.04907]
[1625264802284,2.20527,2109.3,2109.2,2.20527]
[1625264804953,4.75097,2109.3,2109.2,2.20527]
[1625264805757,4.75097,2109.3,2109.2,55.18787]
[1625264806006,2.20527,2109.3,2109.2,55.18787]
[1625264806157,2.20527,2109.3,2109.2,2.20527]
[1625264806759,2.20527,2109.3,2109.2,55.18787]
[1625264808016,2.20527,2109.3,2109.2,2.20527]
[1625264809171,2.20527,2109.3,2109.2,55.67327]
[1625264811577,2.20527,2109.3,2109.2,2.15017]
[1625264812078,1.9537319,2109.5,2109.2,4.71057]
[1625264812480,1.9537319,2109.5,2109.4,55.3141]
[1625264812931,1.95330165,2110.0,2109.4,55.3141]
[1625264813183,1.95312281,2110.1,2109.9,54.9083]
[1625264813280,1.95312281,2110.1,2109.9,58.1724]
[1625264813632,3.62722807,2110.4,2109.9,58.1724]
[1625264813633,1.9529884,2110.3,2109.9,58.1724]
[1625264813931,1.9529884,2110.3,2110.2,4.41054]
[1625264814130,1.95295039,2110.4,2110.2,4.41054]
[1625264814781,1.95256137,2110.5,2110.3,53.2211]
[1625264816085,17.71168128,2110.6,2110.3,53.2211]
[1625264816484,15.7592,2110.6,2110.3,53.2211]
[1625264816633,4.15790473,2110.7,2110.3,53.2211]
[1625264816985,2.20527,2110.7,2110.3,53.2211]
[1625264817985,2.20527,2110.7,2110.6,2.20527]
[1625264821409,2.20527,2110.7,2110.6,5.21797]
[1625264822617,2.20527,2110.7,2110.6,2.20527]
[1625264822718,16.89287,2110.9,2110.6,2.20527]
[1625264823622,18.84369749,2110.9,2110.6,2.20527]
[1625264823822,18.84369749,2110.9,2110.2,2.20527]
[1625264823922,19.84369749,2110.9,2110.2,2.20527]
[1625264824023,19.84369749,2110.9,2110.6,2.20527]
[1625264824171,18.84369749,2110.9,2110.6,2.20527]
[1625264824677,1.95114871,2110.8,2110.6,2.20527]
[1625264825426,19.68022529,2110.9,2110.6,2.20527]
[1625264825427,18.84398288,2110.9,2110.6,2.20527]
[1625264825724,16.89287,2110.9,2110.6,2.20527]
[1625264825824,16.89287,2110.9,2110.6,53.85697]
[1625264825975,16.89287,2110.9,2110.6,56.06224]
[1625264827075,18.84376409,2110.9,2110.6,56.06224]
[1625264827427,16.89287,2110.9,2110.6,56.06224]
[1625264828427,16.89287,2110.9,2110.6,4.41054]
[1625264829285,18.84383364,2110.9,2110.6,4.41054]
[1625264830038,2.20527,2110.7,2110.6,4.41054]
[1625264830136,5.90747,2110.7,2110.6,4.41054]
[1625264830340,3.7022,2110.7,2110.6,4.41054]
[1625264830789,3.7022,2110.7,2110.6,56.84104]
[1625264831239,2.20527,2110.9,2110.6,56.84104]
[1625264831342,2.20527,2110.9,2110.6,59.70694]
[1625264834557,2.20527,2110.9,2110.6,7.27644]
[1625264834658,2.20527,2110.9,2110.6,4.41054]
[1625264835208,2.20527,2110.9,2110.6,47.58304]
[1625264835408,2.20527,2110.9,2110.6,4.41054]
[1625264836219,2.20527,2110.9,2110.6,8.21164]
[1625264839631,2.20527,2110.9,2110.6,4.41054]
[1625264839833,2.20527,2111.2,2110.6,4.41054]
[1625264839982,3.4191,2111.4,2110.6,4.41054]
[1625264840084,3.4191,2111.4,2111.3,4.41054]
[1625264840383,3.4191,2111.4,2111.3,52.59414]
[1625264840783,2.20527,2111.6,2111.3,52.59414]
[1625264840984,2.20527,2111.6,2111.3,4.41054]
[1625264841585,2.20527,2111.6,2111.4,52.8802]
[1625264843201,2.20527,2111.6,2111.4,55.7288]
[1625264843351,14.7779,2111.7,2111.4,55.7288]
[1625264843611,2.20527,2111.8,2111.4,55.7288]
[1625264844759,2.20527,2111.8,2111.4,2.8486]
[1625264844862,2.20527,2111.8,2111.3,4.41054]
[1625264846112,2.20527,2111.8,2111.5,56.6951]
[1625264846314,15.7006,2111.9,2111.5,59.2946]
[1625264848116,17.90587,2111.9,2111.8,2.20527]
[1625264848522,2.20527,2111.9,2111.8,2.20527]
[1625264848620,2.20527,2111.9,2111.3,2.20527]
[1625264848721,4.99437,2111.9,2111.3,2.20527]
[1625264849674,4.99437,2111.9,2111.8,56.3064]
[1625264849772,2.20527,2111.9,2111.8,56.3064]
[1625264850122,2.20527,2111.9,2111.8,60.71694]
[1625264853542,2.20527,2112.1,2111.8,60.71694]
[1625264854392,2.20527,2112.1,2111.8,63.97674]
[1625264856346,2.20527,2112.1,2111.8,7.67034]
[1625264856457,2.20527,2112.1,2111.8,4.41054]
[1625264861175,2.20527,2112.1,2111.8,6.92954]
[1625264864174,2.20527,2112.1,2111.8,4.41054]
[1625264868088,1.0,2112.3,2111.8,4.41054]
[1625264868189,3.20527,2112.4,2111.8,6.79024]
[1625264868288,2.20527,2112.4,2112.2,2.20527]
[1625264869241,2.20527,2112.4,2112.2,1.0821451]
[1625264869390,2.20527,2112.4,2112.3,50.6001]
[1625264869950,2.20527,2112.4,2111.6,52.6563]
[1625264870046,3.20527,2112.4,2110.0,5.0]
[1625264870144,6.04197,2112.4,2110.0,6.0]
[1625264870245,2.20527,2111.1,2111.0,2.20527]
[1625264870451,2.768,2111.1,2111.0,2.20527]
[1625264870543,5.77954705,2112.4,2111.0,2.20527]
[1625264870544,2.4649,2111.8,2111.0,2.20527]
[1625264871397,2.4649,2111.8,2111.7,41.9607]
[1625264871997,1.0,2112.4,2111.7,45.4789]
[1625264872097,4.759,2112.6,2111.7,45.4789]
[1625264872207,5.759,2112.6,2111.7,45.4789]
[1625264872305,7.96427,2112.6,2112.5,2.20527]
[1625264872405,2.20527,2112.6,2112.5,2.20527]
[1625264872915,5.94137,2112.6,2111.1,1.0]
[1625264873015,5.94137,2112.6,2110.2,22.4677]
[1625264873115,50.46947,2112.6,2111.0,47.072]
[1625264873217,1.0,2112.5,2111.0,47.072]
[1625264873366,5.759,2112.5,2111.0,47.072]
[1625264874269,5.759,2112.5,2112.0,2.20527]
[1625264874373,4.759,2112.5,2112.0,2.20527]
[1625264876373,4.759,2112.5,2112.3,2.20527]
[1625264876473,4.759,2112.5,2112.0,2.20527]
[1625264878330,4.41054,2112.1,2112.0,2.20527]
[1625264878479,7.47884,2112.1,2111.7,2.20527]
[1625264882141,4.41054,2112.1,2111.7,2.20527]
[1625264882340,4.41054,2112.1,2112.0,2.20527]
[1625264884595,4.41054,2112.1,2111.7,2.20527]
[1625264887917,4.41054,2112.1,2110.3,1.0]
[1625264888066,1.0,2112.0,2110.1,2.7357]
[1625264888217,1.0,2112.0,2110.1,7.7357]
[1625264888366,1.0,2112.0,2111.9,2.20527]
[1625264888468,2.20527,2112.1,2111.9,2.20527]
[1625264888669,2.20527,2112.1,2111.7,2.20527]
[1625264890271,2.20527,2112.1,2111.3,2.953]
[1625264890373,4.41054,2111.4,2111.3,2.20527]
[1625264890521,7.78894,2111.4,2111.3,2.20527]
[1625264891271,48.45044,2111.4,2111.3,2.20527]
[1625264891371,48.45044,2111.4,2109.0,1.92678562]
[1625264891474,1.0,2111.3,2109.0,16.37068562]
[1625264891823,1.0,2111.3,2109.1,54.8529]
[1625264892472,1.0,2111.3,2110.2,2.20527]
[1625264892473,2.20527,2110.5,2110.2,2.20527]
[1625264892575,5.88207,2110.5,2110.2,2.20527]
[1625264896133,5.88207,2110.5,2109.1,54.8529]
[1625264896283,1.0,2110.4,2109.1,54.8529]
[1625264896434,1.0,2110.4,2109.8,2.20527]
[1625264896535,5.88207,2110.5,2109.8,2.20527]
[1625264897239,5.88207,2110.5,2110.0,58.6994]
[1625264898442,5.88207,2110.5,2110.4,2.20527]
[1625264904197,5.88207,2110.5,2109.8,2.20527]
[1625264904497,2.20527,2110.1,2109.8,2.20527]
[1625264906500,2.20527,2109.9,2109.8,2.20527]
[1625264907051,2.20527,2109.9,2109.5,2.20527]
[1625264908522,2.20527,2109.9,2109.8,2.20527]
[1625264908869,2.20527,2109.9,2109.5,2.20527]
[1625264909120,2.20527,2110.1,2109.5,2.20527]
[1625264910531,4.41054,2110.1,2110.0,2.20527]
[1625264911134,4.41054,2110.1,2110.0,56.72607]
[1625264911936,1.0,2110.6,2110.0,56.72607]
[1625264912036,1.95413301,2110.9,2110.0,2.20527]
[1625264912590,2.20527,2110.5,2110.0,4.41054]
[1625264914491,2.20527,2110.5,2110.1,49.2486]
[1625264914594,2.20527,2110.5,2110.4,2.20527]
[1625264922756,2.20527,2110.5,2110.4,5.48627]
[1625264924408,1.9548137,2111.1,2110.4,5.48627]
[1625264924612,1.9548137,2111.1,2111.0,4.41054]
[1625264924862,1.9548137,2111.1,2111.0,7.06784]
[1625264925115,1.95440618,2111.6,2111.0,7.06784]
[1625264925213,1.95440618,2111.6,2111.5,59.3217]
[1625264925315,1.95440618,2111.6,2111.5,62.2963]
[1625264925577,1.9540596,2111.9,2111.5,62.2963]
[1625264926232,17.49801372,2112.0,2111.5,62.2963]
[1625264926233,16.66051772,2112.0,2111.5,62.2963]
[1625264926632,16.66051772,2112.0,2111.9,4.41054]
[1625264926783,1.95385551,2112.1,2111.9,4.41054]
[1625264926882,1.95385551,2112.1,2111.9,2.20527]
[1625264927082,4.99649216,2112.2,2111.9,2.20527]
[1625264927083,2.79137919,2112.0,2111.9,2.20527]
[1625264927482,2.79137919,2112.0,2111.5,2.9746]
[1625264928037,1.95391256,2111.9,2111.5,2.9746]
[1625264928638,4.15918256,2111.9,2111.5,2.9746]
[1625264929538,1.95388803,2111.8,2111.5,2.9746]
[1625264929739,1.95388803,2111.8,2111.4,2.20527]
[1625264929989,1.95396607,2111.7,2111.4,2.20527]
[1625264930590,1.95403855,2111.6,2111.4,2.20527]
[1625264930691,2.20527,2111.5,2111.4,2.20527]
[1625264931490,2.20527,2111.5,2110.8,79.4315]